[Event "FIDE World Cup G12-B 2024"]
[Site "Batumi"]
[Date "2024.06.27"]
[Round "5.7"]
[White "Gao, Lilianna"]
[Black "Vazquez Sanchez, Antia"]
[Result "0-1"]
[ECO "D87"]
[WhiteElo "1646"]
[BlackElo "1607"]
[Annotator "NA RC"]
[PlyCount "116"]
[EventDate "2024.06.23"]
[EventType "swiss"]
[EventCountry "GEO"]
[SourceTitle "playchess.com"]
[Source "ChessBase"]
[SourceQuality "1"]
[TimeControl "5400+30"]

1. d4 {[%emt 0:00:23]} Nf6 {[%emt 0:00:44]} 2. c4 {[%emt 0:00:29]} g6 {[%emt 0:00:45]} 3. Nc3 {[%emt 0:00:33]} d5 {[%emt 0:00:10]} 4. cxd5 {[%emt 0:00:23]} Nxd5 {[%emt 0:00:09]} 5. e4 {[%emt 0:00:52]} Nxc3 {[%emt 0:00:18]} 6. bxc3 {[%emt 0:00:32]} Bg7 {[%emt 0:00:30]} 7. Bc4 {[%emt 0:01:02]} c5 {[%emt 0:00:52]} 8. Ne2 {[%emt 0:00:39]} O-O {[%emt 0:07:26]} 9. O-O {[%emt 0:02:00]} Nc6 {[%emt 0:00:10]} 10. Be3 {[%emt 0:00:34]} b6 {[%emt 0:01:47]} 11. Rc1 {[%emt 0:02:14]} Bb7 {[%emt 0:02:37]} 12. Bb5 {[%emt 0:02:02]} Qc7 {[%emt 0:09:19]} 13. Bf4 {[%emt 0:05:55]} e5 {[%emt 0:02:41]} 14. Bg3 {[%emt 0:01:43]} Na5 {[%emt 0:08:24]} 15. d5 {[%emt 0:06:46]} Rfd8 {[%emt 0:04:54]} 16. c4 {[%emt 0:10:48]} Bc8 {[%emt 0:07:12]} 17. f4 {[%emt 0:06:03]} f5 {[%emt 0:05:07]} 18. fxe5 {[%emt 0:15:09]} Bxe5 {[%emt 0:00:44]} 19. d6 {[%emt 0:02:31]} Bxd6 {[%emt 0:17:28]} 20. Qd5+ {[%emt 0:02:20]} Kg7 {[%emt 0:03:37]} 21. Qxa8 {[%emt 0:01:06]} Bxg3 {[%emt 0:01:40]} 22. Rcd1 {[%emt 0:04:34]} Bxh2+ {[%emt 0:05:52]} 23. Kh1 {[%emt 0:00:38]} Bd6 {[%emt 0:01:51]} 24. e5 {[%emt 0:08:56]} Bxe5 {[%emt 0:04:24]} 25. Qf3 {[%emt 0:03:12]} a6 {[%emt 0:00:58]} 26. Ba4 {[%emt 0:04:16]} Nxc4 {[%emt 0:01:36]} 27. Rxd8 {[%emt 0:03:40]} Qxd8 {[%emt 0:00:16]} 28. Rd1 {[%emt 0:05:47]} Nd6 {[%emt 0:02:47]} 29. Bc2 {[%emt 0:01:04]} Qh4+ {[%emt 0:01:12]} 30. Qh3 {[%emt 0:00:57]} Qc4 {[%emt 0:01:11]} 31. Qd3 {[%emt 0:02:16]} Qh4+ {[%emt 0:02:18]} 32. Qh3 {[%emt 0:00:30]} Qxh3+ {[%emt 0:00:19]} 33. gxh3 {[%emt 0:00:14]} f4 {[%emt 0:00:01]} 34. Kg2 {[%emt 0:01:56]} Bb7+ {[%emt 0:01:12]} 35. Kf2 {[%emt 0:00:22]} Kf6 {[%emt 0:00:51]} 36. Ng1 {[%emt 0:02:40]} Bd4+ {[%emt 0:00:55]} 37. Ke2 {[%emt 0:00:19]} Nb5 {[%emt 0:00:46]} 38. Rf1 {[%emt 0:00:25]} Be3 {[%emt 0:00:42]} 39. Kd3 {[%emt 0:00:50]} Nd4 {[%emt 0:00:38]} 40. Nf3 {[%emt 0:00:39]} Nxf3 {[%emt 0:00:22]} 41. Bb3 {[%emt 0:00:36]} Ne5+ {[%emt 0:01:31]} 42. Ke2 {[%emt 0:00:32]} a5 {[%emt 0:00:11]} 43. Re1 {[%emt 0:00:46]} Ba6+ {[%emt 0:00:43]} 44. Kd1 {[%emt 0:00:22]} Nd3 {[%emt 0:00:08]} 45. Rxe3 {[%emt 0:01:52]} fxe3 {[%emt 0:00:30]} 46. Ke2 {[%emt 0:00:11]} Nc1+ {[%emt 0:00:09]} 47. Kxe3 {[%emt 0:00:09]} Nxb3 {[%emt 0:00:06]} 48. axb3 {[%emt 0:00:07]} Kf5 {[%emt 0:00:11]} 49. Kf3 {[%emt 0:00:20]} c4 {[%emt 0:00:05]} 50. bxc4 {[%emt 0:00:07]} Bxc4 {[%emt 0:00:05]} 51. h4 {[%emt 0:00:18]} a4 {[%emt 0:00:07]} 52. Kg3 {[%emt 0:00:28]} a3 {[%emt 0:00:04]} 53. Kf3 {[%emt 0:00:07]} a2 {[%emt 0:00:05]} 54. Ke3 {[%emt 0:00:07]} a1=Q {[%emt 0:00:11]} 55. Kf3 {[%emt 0:00:05]} Qf1+ {[%emt 0:00:24]} 56. Kg3 {[%emt 0:00:16]} Bd5 {[%emt 0:00:23]} 57. h5 {[%emt 0:00:10]} Qg2+ {[%emt 0:00:15]} 58. Kh4 {[%emt 0:00:06]} Qh2# {[%emt 0:00:07]} 0-1

[Event "FIDE World Cup G12-B 2024"]
[Site "Batumi"]
[Date "2024.06.27"]
[Round "5.8"]
[White "Shomanova, Adiya"]
[Black "Nakashidze, Nino"]
[Result "1-0"]
[ECO "C51"]
[WhiteElo "1542"]
[BlackElo "1618"]
[Annotator "NA RC"]
[PlyCount "91"]
[EventDate "2024.06.23"]
[EventType "swiss"]
[EventCountry "GEO"]
[SourceTitle "playchess.com"]
[Source "ChessBase"]
[SourceQuality "1"]
[TimeControl "5400+30"]

1. e4 {[%emt 0:00:03]} e5 {[%emt 0:00:05]} 2. Nf3 {[%emt 0:00:13]} Nc6 {[%emt 0:00:08]} 3. Bc4 {[%emt 0:00:12]} Bc5 {[%emt 0:00:10]} 4. b4 {[%emt 0:00:55]} Bxb4 {[%emt 0:04:43]} 5. c3 {[%emt 0:00:22]} Bc5 {[%emt 0:00:27]} 6. d4 {[%emt 0:00:31]} exd4 {[%emt 0:00:08]} 7. O-O {[%emt 0:00:36]} h6 {[%emt 0:10:23]} 8. cxd4 {[%emt 0:01:34]} Bb6 {[%emt 0:00:53]} 9. Be3 {[%emt 0:14:27]} Nge7 {[%emt 0:01:44]} 10. Nc3 {[%emt 0:01:31]} d6 {[%emt 0:06:44]} 11. Qe2 {[%emt 0:14:54]} O-O {[%emt 0:07:15]} 12. h3 {[%emt 0:00:48]} Bd7 {[%emt 0:02:09]} 13. Rad1 {[%emt 0:03:49]} a6 {[%emt 0:11:20]} 14. Nh4 {[%emt 0:05:30]} Kh8 {[%emt 0:07:09]} 15. Qh5 {[%emt 0:06:13]} Qe8 {[%emt 0:19:39]} 16. f4 {[%emt 0:04:06]} f6 {[%emt 0:10:00]} 17. Qf3 {[%emt 0:01:27]} f5 {[%emt 0:09:49]} 18. Nd5 {[%emt 0:11:45]} Nxd5 {[%emt 0:01:45]} 19. Bxd5 {[%emt 0:00:27]} Ne7 {[%emt 0:05:29]} 20. Bxb7 {[%emt 0:09:32]} Ra7 {[%emt 0:00:00]} 21. Bd5 {[%emt 0:00:35]} Nxd5 {[%emt 0:00:00]} 22. exd5 {[%emt 0:00:11]} Qf7 {[%emt 0:00:38]} 23. Rfe1 {[%emt 0:01:02]} Raa8 {[%emt 0:00:33]} 24. g3 {[%emt 0:10:43]} Rae8 {[%emt 0:00:42]} 25. Kf2 {[%emt 0:00:59]} Kh7 {[%emt 0:00:33]} 26. g4 {[%emt 0:01:27]} fxg4 {[%emt 0:00:24]} 27. hxg4 {[%emt 0:00:25]} a5 {[%emt 0:00:36]} 28. f5 {[%emt 0:01:03]} Qf6 {[%emt 0:00:32]} 29. Ng6 {[%emt 0:00:55]} Rf7 {[%emt 0:00:27]} 30. Qf4 {[%emt 0:01:44]} Rg8 {[%emt 0:00:34]} 31. Rh1 {[%emt 0:00:20]} Re8 {[%emt 0:00:30]} 32. Rh3 {[%emt 0:01:13]} Kg8 {[%emt 0:00:30]} 33. Rg3 {[%emt 0:03:45]} Rb8 {[%emt 0:00:30]} 34. Rb1 {[%emt 0:02:09]} Re8 {[%emt 0:00:22]} 35. Rbg1 {[%emt 0:00:23]} Rb8 {[%emt 0:00:35]} 36. Rb1 {[%emt 0:00:13]} Re8 {[%emt 0:00:07]} 37. Rf3 {[%emt 0:00:23]} Rb8 {[%emt 0:00:51]} 38. Kg2 {[%emt 0:01:05]} Re8 {[%emt 0:00:28]} 39. Rd1 {[%emt 0:00:16]} Rb8 {[%emt 0:00:21]} 40. Bf2 {[%emt 0:01:33]} Qd8 {[%emt 0:00:31]} 41. Bh4 {[%emt 0:00:13]} Qe8 {[%emt 0:00:34]} 42. Re1 {[%emt 0:00:25]} Qc8 {[%emt 0:00:38]} 43. Ne7+ {[%emt 0:00:09]} Rxe7 {[%emt 0:00:23]} 44. Rxe7 {[%emt 0:00:11]} Qb7 {[%emt 0:00:40]} 45. Rxd7 {[%emt 0:00:24]} Qxd5 {[%emt 0:00:29]} 46. f6 {[%emt 0:01:03]} 1-0

[Event "FIDE World Cup G12-B 2024"]
[Site "Batumi"]
[Date "2024.06.27"]
[Round "5.9"]
[White "Lu, Yichen"]
[Black "Tereshchenko, Eliza"]
[Result "1/2-1/2"]
[ECO "B36"]
[WhiteElo "1561"]
[BlackElo "1694"]
[Annotator "NA RC"]
[PlyCount "132"]
[EventDate "2024.06.23"]
[EventType "swiss"]
[EventCountry "GEO"]
[SourceTitle "playchess.com"]
[Source "ChessBase"]
[SourceQuality "1"]
[TimeControl "5400+30"]

1. e4 {[%emt 0:00:02]} c5 {[%emt 0:00:03]} 2. Nf3 {[%emt 0:00:07]} Nc6 {[%emt 0:00:03]} 3. d4 {[%emt 0:00:06]} cxd4 {[%emt 0:00:06]} 4. Nxd4 {[%emt 0:00:09]} g6 {[%emt 0:00:05]} 5. c4 {[%emt 0:00:31]} Nf6 {[%emt 0:00:08]} 6. Nc3 {[%emt 0:00:07]} Nxd4 {[%emt 0:00:06]} 7. Qxd4 {[%emt 0:00:08]} d6 {[%emt 0:00:03]} 8. Be2 {[%emt 0:02:28]} Bg7 {[%emt 0:00:08]} 9. O-O {[%emt 0:00:43]} O-O {[%emt 0:00:10]} 10. Qd3 {[%emt 0:01:43]} a5 {[%emt 0:04:45]} 11. Nd5 {[%emt 0:01:44]} a4 {[%emt 0:06:58]} 12. a3 {[%emt 0:03:41]} Re8 {[%emt 0:04:55]} 13. Rd1 {[%emt 0:02:04]} Nd7 {[%emt 0:16:07]} 14. Qc2 {[%emt 0:03:38]} b6 {[%emt 0:28:30]} 15. Be3 {[%emt 0:00:56]} Bb7 {[%emt 0:01:35]} 16. Rab1 {[%emt 0:01:48]} Nc5 {[%emt 0:02:04]} 17. Bxc5 {[%emt 0:00:57]} bxc5 {[%emt 0:00:08]} 18. Bf3 {[%emt 0:05:02]} Be5 {[%emt 0:03:46]} 19. Ne3 {[%emt 0:10:49]} Qc7 {[%emt 0:07:37]} 20. Nd5 {[%emt 0:00:25]} Bxd5 {[%emt 0:05:18]} 21. Rxd5 {[%emt 0:01:03]} e6 {[%emt 0:02:58]} 22. Rd3 {[%emt 0:00:42]} Qe7 {[%emt 0:00:25]} 23. g3 {[%emt 0:00:52]} Reb8 {[%emt 0:01:27]} 24. b3 {[%emt 0:03:52]} axb3 {[%emt 0:01:04]} 25. Rdxb3 {[%emt 0:01:10]} Rxb3 {[%emt 0:00:06]} 26. Rxb3 {[%emt 0:00:51]} Qa7 {[%emt 0:00:41]} 27. Kg2 {[%emt 0:01:47]} Kg7 {[%emt 0:00:17]} 28. Be2 {[%emt 0:01:17]} Rd8 {[%emt 0:04:03]} 29. f4 {[%emt 0:00:53]} Bd4 {[%emt 0:00:20]} 30. Bf3 {[%emt 0:00:19]} Qa5 {[%emt 0:02:04]} 31. Qc1 {[%emt 0:01:29]} Qa4 {[%emt 0:00:54]} 32. Bd1 {[%emt 0:02:31]} Ra8 {[%emt 0:04:32]} 33. Qc2 {[%emt 0:04:02]} Qa5 {[%emt 0:01:15]} 34. Kf1 {[%emt 0:01:13]} Qd8 {[%emt 0:01:25]} 35. Kg2 {[%emt 0:01:08]} Ra5 {[%emt 0:01:02]} 36. Bf3 {[%emt 0:00:59]} Qc7 {[%emt 0:01:38]} 37. Qd3 {[%emt 0:02:03]} Ra4 {[%emt 0:01:06]} 38. Qc2 {[%emt 0:01:31]} Qa7 {[%emt 0:00:44]} 39. Qd3 {[%emt 0:02:24]} Qa6 {[%emt 0:00:11]} 40. Be2 {[%emt 0:00:23]} Qa5 {[%emt 0:00:51]} 41. Kf1 {[%emt 0:00:42]} Qa7 {[%emt 0:00:36]} 42. Bf3 {[%emt 0:00:45]} Qa6 {[%emt 0:00:37]} 43. Be2 {[%emt 0:00:08]} Qa8 {[%emt 0:00:33]} 44. Bf3 {[%emt 0:00:51]} Qa5 {[%emt 0:00:14]} 45. Be2 {[%emt 0:00:31]} h6 {[%emt 0:00:14]} 46. Bd1 {[%emt 0:42:56]} Qa7 {[%emt 0:00:22]} 47. Bf3 {[%emt 0:00:00]} Qa5 {[%emt 0:01:05]} 48. Be2 {[%emt 0:00:00]} Qa6 {[%emt 0:00:31]} 49. Kg2 {[%emt 0:00:00]} Qa7 {[%emt 0:00:22]} 50. Bf3 {[%emt 0:00:00]} Ra5 {[%emt 0:00:24]} 51. Kf1 {[%emt 0:00:00]} Qe7 {[%emt 0:00:46]} 52. Kg2 {[%emt 0:00:00]} Ra7 {[%emt 0:00:08]} 53. Qb1 {[%emt 0:00:00]} Qd7 {[%emt 0:00:54]} 54. Kf1 {[%emt 0:00:00]} h5 {[%emt 0:00:27]} 55. Kg2 {[%emt 0:00:00]} Qa4 {[%emt 0:00:12]} 56. Qd3 {[%emt 0:00:00]} Qd7 {[%emt 0:00:33]} 57. Qb1 {[%emt 0:00:00]} Qe7 {[%emt 0:00:43]} 58. Kf1 {[%emt 0:00:00]} Qf6 {[%emt 0:00:30]} 59. Kg2 {[%emt 0:00:00]} h4 {[%emt 0:00:24]} 60. Qc1 {[%emt 0:00:00]} hxg3 {[%emt 0:00:35]} 61. hxg3 {[%emt 0:00:00]} e5 {[%emt 0:00:08]} 62. Rb8 {[%emt 0:00:00]} Rd7 {[%emt 0:00:54]} 63. Bg4 {[%emt 0:00:00]} Rd8 {[%emt 0:00:13]} 64. Rxd8 {[%emt 0:00:00]} Qxd8 {[%emt 0:00:01]} 65. f5 {[%emt 0:00:00]} g5 {[%emt 0:00:32]} 66. Bf3 {[%emt 0:00:00]} Qe7 {[%emt 0:00:43]} 1/2-1/2

[Event "FIDE World Cup G12-B 2024"]
[Site "Batumi"]
[Date "2024.06.27"]
[Round "5.10"]
[White "Kvirkvelia, Anastasia"]
[Black "Siddhi Rao"]
[Result "0-1"]
[ECO "A07"]
[WhiteElo "1440"]
[BlackElo "1601"]
[Annotator "NA RC"]
[PlyCount "34"]
[EventDate "2024.06.23"]
[EventType "swiss"]
[EventCountry "GEO"]
[SourceTitle "playchess.com"]
[Source "ChessBase"]
[SourceQuality "1"]
[TimeControl "5400+30"]

1. g3 {[%emt 0:00:03]} d5 {[%emt 0:00:07]} 2. Bg2 {[%emt 0:00:07]} e5 {[%emt 0:00:23]} 3. d3 {[%emt 0:00:30]} Nf6 {[%emt 0:00:06]} 4. Nf3 {[%emt 0:00:06]} Nbd7 {[%emt 0:00:04]} 5. O-O {[%emt 0:00:06]} Bc5 {[%emt 0:00:02]} 6. Bd2 {[%emt 0:00:06]} e4 {[%emt 0:06:02]} 7. dxe4 {[%emt 0:07:29]} dxe4 {[%emt 0:00:16]} 8. Nh4 {[%emt 0:00:10]} Ne5 {[%emt 0:09:36]} 9. Nc3 {[%emt 0:01:39]} Neg4 {[%emt 0:11:14]} 10. e3 {[%emt 0:05:31]} g5 {[%emt 0:02:03]} 11. h3 {[%emt 0:02:31]} gxh4 {[%emt 0:17:08]} 12. hxg4 {[%emt 0:00:49]} Bxg4 {[%emt 0:01:31]} 13. Qe1 {[%emt 0:01:16]} Qe7 {[%emt 0:19:57]} 14. gxh4 {[%emt 0:03:54]} Bf3 {[%emt 0:00:48]} 15. a3 {[%emt 0:01:07]} Rg8 {[%emt 0:00:09]} 16. Ne2 {[%emt 0:04:13]} Rxg2+ {[%emt 0:00:08]} 17. Kh1 {[%emt 0:00:10]} Ng4 {[%emt 0:00:07]} 0-1

[Event "FIDE World Cup G12-B 2024"]
[Site "Batumi"]
[Date "2024.06.27"]
[Round "5.11"]
[White "Rusitashvili, Tea"]
[Black "Chiokadze, Barbare"]
[Result "1/2-1/2"]
[ECO "B51"]
[WhiteElo "1535"]
[BlackElo "1461"]
[Annotator "NA RC"]
[PlyCount "126"]
[EventDate "2024.06.23"]
[EventType "swiss"]
[EventCountry "GEO"]
[SourceTitle "playchess.com"]
[Source "ChessBase"]
[SourceQuality "1"]
[TimeControl "5400+30"]

1. e4 {[%emt 0:00:03]} c5 {[%emt 0:00:01]} 2. Nf3 {[%emt 0:00:07]} Nc6 {[%emt 0:00:03]} 3. Bb5 {[%emt 0:00:10]} d6 {[%emt 0:00:22]} 4. O-O {[%emt 0:00:17]} Nf6 {[%emt 0:00:08]} 5. Re1 {[%emt 0:00:16]} e5 {[%emt 0:00:38]} 6. c3 {[%emt 0:00:30]} Be7 {[%emt 0:01:08]} 7. d4 {[%emt 0:00:32]} exd4 {[%emt 0:10:51]} 8. cxd4 {[%emt 0:01:14]} cxd4 {[%emt 0:03:15]} 9. Nxd4 {[%emt 0:01:09]} Bd7 {[%emt 0:02:04]} 10. Nc3 {[%emt 0:01:20]} O-O {[%emt 0:01:50]} 11. Bf4 {[%emt 0:05:21]} Qb6 {[%emt 0:11:07]} 12. Be3 {[%emt 0:07:00]} Qc7 {[%emt 0:04:17]} 13. Rc1 {[%emt 0:01:36]} a6 {[%emt 0:14:10]} 14. Ba4 {[%emt 0:08:11]} Qd8 {[%emt 0:21:49]} 15. f3 {[%emt 0:10:04]} Rc8 {[%emt 0:04:06]} 16. Qd2 {[%emt 0:01:46]} Ne5 {[%emt 0:01:56]} 17. Bxd7 {[%emt 0:05:50]} Qxd7 {[%emt 0:00:17]} 18. Nf5 {[%emt 0:01:17]} Nc4 {[%emt 0:00:49]} 19. Qf2 {[%emt 0:01:39]} Nxe3 {[%emt 0:00:48]} 20. Qxe3 {[%emt 0:00:20]} Bd8 {[%emt 0:01:56]} 21. Red1 {[%emt 0:03:47]} Rc6 {[%emt 0:00:27]} 22. Kh1 {[%emt 0:02:49]} h6 {[%emt 0:01:01]} 23. Qd3 {[%emt 0:02:14]} Bc7 {[%emt 0:00:58]} 24. Qd4 {[%emt 0:04:18]} Qd8 {[%emt 0:01:25]} 25. Nd5 {[%emt 0:02:15]} Kh7 {[%emt 0:12:18]} 26. Nfe7 {[%emt 0:06:02]} Rxc1 {[%emt 0:00:26]} 27. Rxc1 {[%emt 0:00:16]} Nxd5 {[%emt 0:00:12]} 28. Nxd5 {[%emt 0:00:53]} Bb8 {[%emt 0:00:22]} 29. g3 {[%emt 0:08:58]} Qa5 {[%emt 0:01:36]} 30. a3 {[%emt 0:01:05]} f5 {[%emt 0:01:43]} 31. Ne7 {[%emt 0:00:44]} f4 {[%emt 0:03:12]} 32. g4 {[%emt 0:04:45]} Qd8 {[%emt 0:00:15]} 33. Nf5 {[%emt 0:00:27]} Qd7 {[%emt 0:00:08]} 34. Qd2 {[%emt 0:01:05]} Qe6 {[%emt 0:01:02]} 35. Qxf4 {[%emt 0:02:27]} d5 {[%emt 0:00:11]} 36. Qd2 {[%emt 0:01:06]} dxe4 {[%emt 0:00:10]} 37. Qd4 {[%emt 0:00:12]} Qe5 {[%emt 0:00:29]} 38. Qxe5 {[%emt 0:01:30]} Bxe5 {[%emt 0:00:03]} 39. fxe4 {[%emt 0:00:56]} Bxb2 {[%emt 0:00:05]} 40. Rc7 {[%emt 0:00:14]} Re8 {[%emt 0:00:24]} 41. Rxb7 {[%emt 0:00:28]} Bc3 {[%emt 0:00:35]} 42. Rb3 {[%emt 0:01:35]} Bf6 {[%emt 0:00:31]} 43. Re3 {[%emt 0:00:33]} Be5 {[%emt 0:00:40]} 44. Kg2 {[%emt 0:00:47]} Rc8 {[%emt 0:00:17]} 45. Re2 {[%emt 0:02:43]} Rc3 {[%emt 0:00:11]} 46. Ne3 {[%emt 0:01:32]} Bf6 {[%emt 0:00:35]} 47. e5 {[%emt 0:02:04]} Bd8 {[%emt 0:00:42]} 48. Nd5 {[%emt 0:01:41]} Rc5 {[%emt 0:02:01]} 49. Nf4 {[%emt 0:01:24]} Be7 {[%emt 0:00:18]} 50. Re3 {[%emt 0:02:50]} Ra5 {[%emt 0:00:19]} 51. Kf3 {[%emt 0:02:33]} Rxa3 {[%emt 0:00:18]} 52. Rxa3 {[%emt 0:00:59]} Bxa3 {[%emt 0:00:02]} 53. Ke4 {[%emt 0:00:10]} Kg8 {[%emt 0:00:06]} 54. e6 {[%emt 0:00:16]} g5 {[%emt 0:00:12]} 55. Nd5 {[%emt 0:00:17]} Kf8 {[%emt 0:01:10]} 56. Ke5 {[%emt 0:00:25]} a5 {[%emt 0:00:24]} 57. Kf6 {[%emt 0:01:12]} a4 {[%emt 0:00:12]} 58. e7+ {[%emt 0:01:11]} Bxe7+ {[%emt 0:00:04]} 59. Kg6 {[%emt 0:00:46]} Bd6 {[%emt 0:00:42]} 60. h3 {[%emt 0:00:11]} a3 {[%emt 0:00:55]} 61. Nc3 {[%emt 0:00:21]} Be5 {[%emt 0:00:18]} 62. Na2 {[%emt 0:00:08]} Bg7 {[%emt 0:00:15]} 63. Nb4 {[%emt 0:00:27]} Kg8 {[%emt 0:00:24]} 1/2-1/2